Cogmind - Beta 11.1 @@@ ROGUE MODE // 2022.06.03 @ 15:41:12 Player: Jamuson Result: Destroyed by G-34 Mercenary with Small Laser Performance ------------- Evolutions (0) 0 Regions Visited (4) 800 Robots Destroyed (19) 95 Value Destroyed (484) 484 Prototype IDs (23) 460 Alien Tech Used (0) 0 Bonus (314) 314 TOTAL SCORE: 2153 Bonus ------- Follower Combat Kills 14 Aligned with FarCom 300 Cogmind --------- Core Integrity 0/250 Matter 300/300 Energy 250/250 System Corruption 0% Temperature Cool (6) Movement Rolling (135) Ox3 Location -9/Mines Parts ------- > --- POWER (1) -------- Ion Engine > --- PROPULSION (2) --- Wheel Compact Wheel > --- UTILITY (2) ------ Improved Heat Sink Huge Storage Unit > --- WEAPON (2) ------- Beam Cannon Grenade Launcher > --- INVENTORY (25) --- Ion Engine Ion Engine High-capacity Battery (250) High-capacity Matter Pod (200) Sensor Array Signal Interpreter Beam Cannon AWS/Autocannon Peak State ------------ > --- POWER ------------ Ion Engine > --- PROPULSION ------- Compact Wheel Compact Wheel > --- UTILITY ---------- Improved Heat Sink Huge Storage Unit > --- WEAPON ----------- Beam Cannon Beam Cannon > --- INVENTORY -------- Ion Engine Wheel High-capacity Matter Pod Sensor Array Signal Interpreter AWS/Autocannon Grenade Launcher [Rating: 12] Favorites ----------- Power Ion Engine Engine Ion Engine Propulsion Compact Wheel Leg Aluminum Leg Wheel Compact Wheel Utility Improved Heat Sink Device Improved Heat Sink Storage Huge Storage Unit Processor Transport Network Coupler Weapon Beam Cannon Energy Gun Small Laser Energy Cannon Beam Cannon Ballistic Gun Assault Rifle Launcher Grenade Launcher Build | -11 -10 -10 -10 -9 ------- Run | Scr Mat Min Exi Min Slots Evolved . | . . . . . Power . | . . . . . Propulsion . | . . . . . Utility . | . . . . . Weapon . | . . . . . Parts Attached 17 | . 14 . . 3 Power 2 | . 1 . . 1 Engine 2 | . 1 . . 1 Core . | . . . . . Reactor . | . . . . . Propulsion 5 | . 4 . . 1 Treads . | . . . . . Leg 1 | . 1 . . . Wheel 4 | . 3 . . 1 Hover . | . . . . . Flight . | . . . . . Utility 3 | . 3 . . . Device 1 | . 1 . . . Storage 1 | . 1 . . . Processor 1 | . 1 . . . Hackware . | . . . . . Protection . | . . . . . Artifact . | . . . . . Weapon 7 | . 6 . . 1 Energy Gun . | . . . . . Energy Cannon 3 | . 3 . . . Ballistic Gun 2 | . 2 . . . Ballistic Cannon . | . . . . . Launcher 2 | . 1 . . 1 Special Weapon . | . . . . . Impact Weapon . | . . . . . Slashing Weapon . | . . . . . Piercing Weapon . | . . . . . Special Melee Weapon . | . . . . . Unidentified Prototypes . | . . . . . Parts Lost 2 | . 1 . . 1 Power . | . . . . . Propulsion 2 | . 1 . . 1 Utility . | . . . . . Weapon . | . . . . . Highest Loss Streak 1 | . 1 . . 1 To Critical Strikes . | . . . . . Average Slot Usage (%) 98 | . 96 100 100 99 Engine 14 | . 14 14 14 14 Leg 7 | . 15 . . . Wheel 20 | . 12 28 28 27 Device 10 | . 6 14 14 14 Storage 14 | . 14 14 14 14 Processor 2 | . 5 . . . Energy Cannon 17 | . 13 28 28 15 Ballistic Gun 5 | . 12 . . . Launcher 4 | . 1 . . 12 Naked Turns . | . . . . . Heaviest Build 92 | 13 92 92 92 92 Greatest Support 32 | 20 32 32 32 26 Greatest Overweight (x) 5 | . 5 2 2 5 Average Overweight (x) 1 | . 1 2 2 3 Largest Inventory Capacity 25 | . 25 25 25 25 Average Capacity 20 | . 15 25 25 25 Most Carried 11 | . 7 6 10 11 Average Carried 7 | . 5 6 7 10 Final Capacity 25 | 8 25 25 25 25 Final Carried 10 | 6 6 6 10 10 Class Distribution -------------------- 100% | Mutant Dominant Class ---------------- Mutant | -10/Materials Mutant | -10/Mines Mutant | -10/Exiles Mutant | -9/Mines Resources | -11 -10 -10 -10 -9 ----------- Run | Scr Mat Min Exi Min Matter Collected 806 | 192 328 48 . 238 Remotely . | . . . . . Salvage Created 646 | . 487 13 . 146 Parts 34 | . 23 2 . 9 Haulers Intercepted 2 | . 2 . . . Recyclers Shooed . | . . . . . Parts Field Recycled . | . . . . . Retrieved Matter . | . . . . . Parts Self-Destructed . | . . . . . Prevented . | . . . . . Kills | -11 -10 -10 -10 -9 ------- Run | Scr Mat Min Exi Min Combat Hostiles Destroyed 14 | . 7 1 . 6 Guns 6 | . 6 . . . Cannons 2 | . 1 1 . . AOE 5 | . . . . 5 Classes Destroyed 6 | . 4 1 . 1 Tunneler 1 | . 1 . . . Hauler 2 | . 2 . . . Watcher 2 | . 2 . . . Swarmer 4 | . . 1 . 3 Grunt 9 | . 7 . . 2 Brawler 1 | . . . . 1 Best Kill Streak 7 | . 7 1 . 3 Combat Bots Only 6 | . 6 1 . 3 Max Kills in Single Turn 3 | . 1 1 . 3 Gunslinging . | . . . . . Exploded 2 | . . . . 2 Melee . | . . . . . Uniques/NPCs Destroyed . | . . . . . Combat | -11 -10 -10 -10 -9 -------- Run | Scr Mat Min Exi Min Damage Taken 971 | . 610 28 . 333 Core 255 | . 182 . . 73 Absorbed by Shields . | . . . . . Core Remaining (%) 100 | 100 . . . . Volleys Fired 52 | . 42 2 . 8 Largest 2 | . 2 2 . 2 Hottest 120 | . 120 120 . 120 Shots Fired 98 | . 80 4 . 14 Gun 62 | . 62 . . . Cannon 30 | . 14 4 . 12 Launcher 6 | . 4 . . 2 Special . | . . . . . Kinetic 62 | . 62 . . . Thermal 30 | . 14 4 . 12 Explosive 6 | . 4 . . 2 Electromagnetic . | . . . . . Robot Hit Streak 9 | . 9 1 . 4 Robot Miss Streak 6 | . 6 2 . 4 Penetration Max . | . . . . . Secondary Targets 3 | . 3 . . . Max Gunslinging Chain 1 | . 1 . . . Shots Hit Robots 56 | . 48 1 . 7 Core Hits 27 | . 20 1 . 6 Critical Kills 1 | . 1 . . . Critical Parts Destroyed . | . . . . . Critical Strikes 1 | . 1 . . . Meltdown 1 | . 1 . . . Melee Attacks . | . . . . . Impact . | . . . . . Slashing . | . . . . . Piercing . | . . . . . Sneak Attacks . | . . . . . Combat Hostiles . | . . . . . Follow-up Attacks . | . . . . . Damage Inflicted 1036 | . 705 19 . 312 Guns 558 | . 558 . . . Cannons 291 | . 147 19 . 125 Explosions 187 | . . . . 187 Melee . | . . . . . Ramming . | . . . . . Kinetic 558 | . 558 . . . Thermal 359 | . 147 19 . 193 Explosive 119 | . . . . 119 Electromagnetic . | . . . . . Impact . | . . . . . Slashing . | . . . . . Piercing . | . . . . . Highest Corruption . | . . . . . Average Corruption . | . . . . . Corruption Purged . | . . . . . Corruption Blocked . | . . . . . Overload Shots . | . . . . . Overflow Damage 6 | . . . . 6 Projectiles 1 | . . . . 1 Explosions 5 | . . . . 5 Melee . | . . . . . Knockbacks . | . . . . . Impact . | . . . . . Kinetic . | . . . . . Secondary . | . . . . . Self-Inflicted Damage 60 | . . . . 60 Shots 2 | . . . . 2 Rammed . | . . . . . Targets Rammed . | . . . . . Kicked . | . . . . . Crushed . | . . . . . Highest Temperature 180 | . 48 36 . 180 Average Temperature 30 | . 11 18 . 87 Received Heat Transfer 459 | . 372 . . 87 Siege Activations . | . . . . . Robots Corrupted . | . . . . . Combat Hostiles . | . . . . . Parts Fried . | . . . . . Impact Corruptions . | . . . . . Robots Melted 2 | . 1 . . 1 Combat Hostiles 1 | . . . . 1 Parts Melted 2 | . 1 . . 1 Heat Transferred 692 | . 296 37 . 359 Parts Sabotaged . | . . . . . Parts Stolen . | . . . . . Parts Stripped . | . . . . . Power Chain Reactions . | . . . . . Missiles Intercepted . | . . . . . Alert | -11 -10 -10 -10 -9 ------- Run | Scr Mat Min Exi Min Peak Influence 269 | . 269 129 . 241 Initial 51 | . . 51 . . Average 137 | . 92 121 . 223 Maximum Alert Level 1 | . 1 . . 1 Low Security (%) 65 | . 90 100 . 10 Level 1 34 | . 9 . . 89 Level 2 . | . . . . . Level 3 . | . . . . . Level 4 . | . . . . . Level 5 . | . . . . . High Security . | . . . . . Max Security . | . . . . . Squads Dispatched 1 | . 1 . . . Investigation . | . . . . . Extermination . | . . . . . Reinforcement 1 | . 1 . . . Assault . | . . . . . Garrison . | . . . . . Intercept . | . . . . . Searches Triggered . | . . . . . Construction Impeded . | . . . . . Haulers Reinforced . | . . . . . Active Scanning Responses . | . . . . . Cargo Convoy Interrupts . | . . . . . Stealth | -11 -10 -10 -10 -9 --------- Run | Scr Mat Min Exi Min Distress Signals 3 | . 3 . . . Communications Jammed . | . . . . . Distress Signals . | . . . . . Times Spotted 27 | . 15 3 . 9 Peak Tracking Total 7 | . 7 3 . 3 Tactical Retreats . | . . . . . Traps | -11 -10 -10 -10 -9 ------- Run | Scr Mat Min Exi Min Traps Triggered 2 | . 2 . . . Indirectly . | . . . . . Trap Hack Attempts . | . . . . . Triggered . | . . . . . Disarmed . | . . . . . Reprogrammed . | . . . . . Reused . | . . . . . Traps Extracted . | . . . . . Installed . | . . . . . Triggered . | . . . . . Machines | -11 -10 -10 -10 -9 ---------- Run | Scr Mat Min Exi Min Machines Disabled 2 | . 1 . . 1 Max in Single Turn 1 | . 1 . . 1 Machines Sabotaged . | . . . . . Garrisons Compromised . | . . . . . Overloaded Fab Kills . | . . . . . Hacking | -11 -10 -10 -10 -9 --------- Run | Scr Mat Min Exi Min Machines Accessed 7 | . 6 . 1 . Terminals 6 | . 6 . . . Fabricators . | . . . . . Repair Stations . | . . . . . Recycling Units . | . . . . . Scanalyzers . | . . . . . Garrison Access . | . . . . . Total Hacks 25 | . 24 . 1 . Successful 13 | . 12 . 1 . Failed 12 | . 12 . . . Catastrophic 1 | . 1 . . . Database Lockouts . | . . . . . Manual 22 | . 21 . 1 . Terminals 24 | . 24 . . . Fabricators . | . . . . . Repair Stations . | . . . . . Recycling Units . | . . . . . Scanalyzers . | . . . . . Garrison Access . | . . . . . Terminal Hacks 7 | . 6 . 1 . Robot Analysis 4 | . 4 . . . Terminal Index 1 | . 1 . . . Hauler Manifests 1 | . 1 . . . EX-Prototype ID Bank 1 | . . . 1 . Fabricator Hacks . | . . . . . Repair Station Hacks . | . . . . . Recycling Unit Hacks . | . . . . . Scanalyzer . | . . . . . Garrison Access Hacks . | . . . . . Unauthorized Hacks 6 | . 6 . . . Terminals 6 | . 6 . . . Botnet 5 | . 5 . . . Operators 1 | . 1 . . . Fabricators . | . . . . . Repair Stations . | . . . . . Recycling Units . | . . . . . Scanalyzers . | . . . . . Garrison Access . | . . . . . Data Cores Recovered . | . . . . . Used . | . . . . . Hacking Detections 6 | . 6 . . . Full Trace Events . | . . . . . Feedback Events . | . . . . . Feedback Blocked . | . . . . . Robot Schematics Acquired . | . . . . . Robots Built . | . . . . . Authchips . | . . . . . Time . | . . . . . Total Robot Build Rating . | . . . . . Part Schematics Acquired . | . . . . . Parts Built . | . . . . . Authchips . | . . . . . Time . | . . . . . Total Part Build Rating . | . . . . . Parts Repaired . | . . . . . Time . | . . . . . Parts Recycled . | . . . . . Recycled Matter . | . . . . . Retrieved Matter . | . . . . . Retrieved Components . | . . . . . Parts Scanalyzed . | . . . . . Part Schematics Acquired . | . . . . . Parts Damaged . | . . . . . Bothacking | -11 -10 -10 -10 -9 ------------ Run | Scr Mat Min Exi Min Used RIF Installer . | . . . . . Robots Hacked . | . . . . . Non-combat . | . . . . . Combat . | . . . . . Robot Hacks Applied . | . . . . . Relay Couplers Released . | . . . . . Fabnet Peak Effective % . | . . . . . Robots Rewired . | . . . . . Allies Hacked . | . . . . . Hacks Repelled . | . . . . . Allies | -11 -10 -10 -10 -9 -------- Run | Scr Mat Min Exi Min Total Allies 2 | . . 2 . . Largest Group 2 | . . 2 2 . Highest-Rated Group 45 | . . 45 45 . Highest-Rated Ally 31 | . . 31 31 . Total Orders . | . . . . . Ally Attacks 6 | . . 6 . . Total Damage 83 | . . 83 . . Kills 2 | . . 2 . . Allies Corrupted . | . . . . . Allies Melted . | . . . . . Intel | -11 -10 -10 -10 -9 ------- Run | Scr Mat Min Exi Min Robot Analysis Total 4 | . 4 . . . Derelict Logs Recovered 1 | . . . . 1 Drone Launches . | . . . . . Drone Recoveries . | . . . . . Exploration | -11 -10 -10 -10 -9 ------------- Run | Scr Mat Min Exi Min Turns Passed 1533 | . 737 90 314 392 Spaces Moved 1023 | 1 454 57 241 270 Core . | . . . . . Treads . | . . . . . Legs 223 | 1 222 . . . Wheels 800 | . 232 57 241 270 Hover . | . . . . . Flight . | . . . . . Fastest Speed 120 | 120 120 130 130 135 Average Speed 129 | 120 126 130 130 135 Slowest Speed 190 | 120 190 130 130 175 Overloaded Moves . | . . . . . Propulsion Burnouts . | . . . . . Robots Hopped . | . . . . . Cave-ins Triggered . | . . . . . Exploration Rate (%) 42 | 2 78 14 59 58 Regions Visited 4 Branch Regions 3 Pre-discovered Areas 1 | . . . . 1 Known Exits Taken . | . . . . . Unknown Exits Taken 4 | 1 1 1 1 . Scrap Searched 1 | . . . . 1 Spaces Dug . | . . . . . Terrain Destroyed 54 | . 22 . . 32 Melee . | . . . . . Projectile . | . . . . . AOE 54 | . 22 . . 32 Terrain Rammed . | . . . . . Walls Destroyed . | . . . . . Machines Disabled . | . . . . . Actions | -11 -10 -10 -10 -9 --------- Run | Scr Mat Min Exi Min Total 1131 | . 538 69 242 282 Wait 21 | . 10 11 . . Move 1019 | . 453 56 240 270 Hop . | . . . . . Pick Up 10 | . 8 . 2 . Fast Attach 6 | . 6 . . . Attach 6 | . 4 . . 2 Detach 1 | . . . . 1 Swap 5 | . 4 . . 1 Drop 11 | . 11 . . . Fire 52 | . 42 2 . 8 Melee . | . . . . . Ram . | . . . . . Kick . | . . . . . Crush . | . . . . . Escape Stasis . | . . . . . Rewire . | . . . . . Trap . | . . . . . Miscellaneous . | . . . . . Route ------- -11/Scrapyard -10/Materials (discovered 4 exits: [*Mat x3] / [*Min]) -10/Mines -10/Exiles -9/Mines (discovered 1 exit: [*Mat]) History --------- Turn | Location | Event 1 | -11/Scrapyard | Discovered new exit (range 0) 1 | -11/Scrapyard | Entered Materials 152 | -10/Materials | Discovered new exit (range 16) 226 | -10/Materials | Discovered new exit (range 14) 307 | -10/Materials | Build established: Mutant 328 | -10/Materials | Core integrity fell below 50% 528 | -10/Materials | Discovered new exit (range 7) 593 | -10/Materials | Discovered new exit (range 8) 738 | -10/Materials | Entered Mines 822 | -10/Mines | Deemed a non-threat by the Exiles lab entrance 823 | -10/Mines | Discovered new exit (range 5) 828 | -10/Mines | Entered Exiles 828 | -10/Exiles | Accompanied by 2 allies 858 | -10/Exiles | Led the pair of lost Derelicts to a safe place 861 | -10/Exiles | Met 8R-AWN 883 | -10/Exiles | Met EX-HEX 919 | -10/Exiles | Met EX-BIN 934 | -10/Exiles | Aligned with FarCom system 935 | -10/Exiles | Given EX-Vault access code 965 | -10/Exiles | Opened EX-Vault 973 | -10/Exiles | Found AWS/Autocannon 1001 | -10/Exiles | Warned to stay clear of 0b10 Research branches 1036 | -10/Exiles | Met EX-DEC 1128 | -10/Exiles | Discovered new exit (range 14) 1142 | -10/Exiles | Left Exiles lab with AWS/Autocannon 1142 | -10/Exiles | Entered Mines 1153 | -9/Mines | Core integrity fell below 20% 1366 | -9/Mines | Learned location of Storage (-8) 1525 | -9/Mines | Discovered new exit (range 10) 1534 | -9/Mines | Destroyed by G-34 Mercenary with Small Laser Last Messages --------------- 01188_ Acquired 9 matter. 01190_ Acquired 4 matter. 01197_ Acquired 7 matter. 01197_ U-05 Engineer builds a Wall. 01198_ U-05 Engineer lays Concrete. 01201_ U-05 Engineer builds a Wall. 01203_ U-05 Engineer lays Concrete. 01211_ U-05 Engineer builds a Wall. 01277_ Searching scrap... 01277_ Found Weapon Shielding. 01277_ Found 18 Matter. 01278_ Acquired 18 matter. 01297_ Extracted 150 matter. 01298_ Extracted 11 matter. 01366_ Acquired derelict log, extracted data. World map updated: -8/Storage. 01414_ K-01 Serf collects debris. 01420_ K-01 Serf cleans the Matter Pump. 01424_ K-01 Serf collects debris. 01525_ EXIT=FOUND Map ----- +----------------------------------------------------+ | ???????????????????????????????????#????????#####? | | ??????????????????????????????????## ??????## ## | | ??????????????????????????????????# ????## # | | ??????????????????????????????????# ??## # | | ???????????????????????????????????# ## |# | | ????????????????????????????????????# = ## | | ????????????????????????????????????## ! ###? | | ?????????????????????????????????????# ##??? | | ?????????????????????????????????????# ##### | | ?????????????????????????????????????## | | ??????????????????????????????????????#### ## ### | | ?????????????????????????????????????????## ?# ### | | ???????????????????????????????????##?###?# ## ### | | ??????????????????#????????????????# ## ## | | ??????????????????# ???????????????? #### ### | | ??????????????????? ?????????????????# #??# #?# | | ?????????????????### ?????????????????# ##?# #?? | | ?????????????????? ?????????????????# ### #?? | | ??????????????????## ????????????????# ##? | | ???????????????#### ########????????## #? | | ???????????????? ##????????## ## | | ????????????????? #?????????# ## | | ???????????????????? ##???????## #? | | ??????????????????????# #?????### #? | | ???????????????????????# ####?## ##? | | ??????????????????????## @ #?# ####?? | | ??????????????????????# #?# ##????? | | ??????????????????# ## #?# ##?????? | | ???????????????# < ## ### #??????? | | ??????????????# ### ##???### | | ??????????????# gg #####?# """ #???# | | ??????????????## #??????##### """ #???# | | ???????????????## g#?????????## """ #???# ! | | ????????????????##### t??????????# #???# | | ????????????????????# t??????????# ##### | | ????????????????????# ???????????#### ## | | ????????????????????# ??????????????# ## ##### | | ????????????????????# ??????????????# ## ####### | | ???????????????????? ???????????????# ## ! #?? | | ????????????????????????????????????# ## ### #?? | | ????????????????????????????????????# ## #?# ### | | ????????????????????????????????????# ## #?# | | ????????????????????????????????????# #?##### | | ????????????????????????????????????# ##????? | | ????????????????????????????????????# ###### | | ????????????????????????????????????# | | ????????????????????????????????????## ###### | | ???????????????????????????????? #####????? | | ???????????????????????????????####### #????##### | | ?????????????????????????????????????# #????# | +----------------------------------------------------+ Best States ------------- Heat Dissipation 39 Energy Generation 10 Energy Capacity 250 Matter Stores 300 Matter Capacity 300 Sight Range 16 Terrain Scan Density 10 Evasion (%) 55 Item Schematics ----------------- None Robot Schematics ------------------ None Fabricated ------------ Nothing Alien Tech Used ----------------- None Achievements -------------- None Challenges ------------ None Game ------ Seed LatentNullBarrier Manual? 0 Play Time 00:15:28 Cumulative 216.1 hours Start 2022.06.03 @ 15:21:37 End 2022.06.03 @ 15:41:12 Sessions 1 Manual Loads 0 Difficulty Rogue Special Mode None Game No. 102 Rogue 95 Adventurer 0 Explorer 7 Win Type - Total 1 Types 0/0/1/0/0/0/0/0/0 Lore% 63 Gallery% 61 Achievement% 50 Wizard Run 0 Options --------- ASCII 0 Keyboard 0 Movement Mouse Keybinds 0 Fullscreen 1 Font 16/Cog Map View 76x50 Tactical HUD 1 Map Filters NONE Filters NONE Steam 1 RUN: 67ab9a40-29f0-46e1-a1e5-640d6f0a28fb